fUSD/lending_fUSD_20260527
["ID","MTS","AMOUNT","RATE_DAILY","PERIOD"]
[423135441,1779881445000,-300.0,0.000355,2]
[423135442,1779881445000,-300.0,0.000355,2]
[423135445,1779881445000,-300.0,0.000355,2]
[423135440,1779881445000,-300.0,0.000355,2]
[423135443,1779881445000,-605.31118564,0.000355,2]
[423135460,1779881445000,-300.0,0.000355,2]
[423135449,1779881445000,-894.65434383,0.000355,2]
[423135490,1779881445000,-452.52893397,0.000355,2]
[423135451,1779881445000,-300.0,0.000355,2]
[423135458,1779881445000,-599.99999998,0.000355,2]
[423135456,1779881445000,-351.10144345,0.000355,2]
[423135457,1779881445000,-300.0,0.000355,2]
[423135454,1779881445000,-300.0,0.000355,2]
[423135452,1779881445000,-302.21937029,0.000355,2]
[423135459,1779881445000,-300.00000001,0.000355,2]
[423135455,1779881445000,-300.99795142,0.000355,2]
[423135453,1779881445000,-300.0,0.000355,2]
[423135461,1779881445000,-300.0,0.000355,2]
[423135464,1779881445000,-300.0,0.000355,2]
[423135450,1779881445000,-727.07827244,0.000355,2]
[423135493,1779881445000,-300.0,0.000355,2]
[423135543,1779881445000,-300.0,0.000355,2]
[423135501,1779881445000,-300.0,0.000355,2]
[423135522,1779881445000,-300.0,0.000355,2]
[423135526,1779881445000,-1068.40163352,0.000355,2]
[423135524,1779881445000,-300.0,0.000355,2]
[423135531,1779881445000,-300.0,0.000355,2]
[423135527,1779881445000,-894.65434383,0.000355,2]
[423135530,1779881445000,-302.21937029,0.000355,2]
[423135541,1779881445000,-527.62572404,0.000355,2]
[423135538,1779881445000,-1263.96825586,0.000355,2]
[423135535,1779881445000,-300.0,0.000355,2]
[423135542,1779881445000,-300.0,0.000355,2]
[423135539,1779881445000,-300.0,0.000355,2]
[423135536,1779881445000,-300.0,0.000355,2]
[423135528,1779881445000,-727.07827244,0.000355,2]
[423135532,1779881445000,-300.0,0.000355,2]
[423135534,1779881445000,-548.12530879,0.000355,2]
[423135540,1779881445000,-344.45437934,0.000355,2]
[423135537,1779881445000,-300.0,0.000355,2]
[423135544,1779881445000,-865.6208675,0.000355,2]
[423135547,1779881445000,-300.0,0.000355,2]
[423135546,1779881445000,-300.09384644,0.000355,2]
[423135545,1779881445000,-950.32029804,0.000355,2]
[423135549,1779881445000,-310.02493426,0.000355,2]
[423135552,1779881445000,-1634.44392223,0.000355,2]
[423135550,1779881445000,-300.0,0.000355,2]
[423135551,1779881445000,-300.0,0.000355,2]
[423135548,1779881445000,-1148.83589152,0.000355,2]
[423135533,1779881445000,-300.99795142,0.000355,2]
[423135520,1779881445000,-300.0,0.000355,2]
[423135494,1779881445000,-300.0,0.000355,2]
[423135521,1779881445000,-605.31118564,0.000355,2]
[423135498,1779881445000,-310.28230408,0.000355,2]
[423135495,1779881445000,-466.72874829,0.000355,2]
[423135506,1779881445000,-300.0,0.000355,2]
[423135504,1779881445000,-1096.2926835,0.000355,2]
[423135496,1779881445000,-300.0,0.000355,2]
[423135500,1779881445000,-300.0,0.000355,2]
[423135502,1779881445000,-300.0,0.000355,2]
[423135519,1779881445000,-300.0,0.000355,2]
[423135505,1779881445000,-300.0,0.000355,2]
[423135507,1779881445000,-300.0,0.000355,2]
[423135503,1779881445000,-361.3543706,0.000355,2]
[423135497,1779881445000,-484.76763572,0.000355,2]
[423135511,1779881445000,-300.0,0.000355,2]
[423135499,1779881445000,-300.0,0.000355,2]
[423135510,1779881445000,-565.10477642,0.000355,2]
[423135514,1779881445000,-300.0,0.000355,2]
[423135523,1779881445000,-300.0,0.000355,2]
[423135529,1779881445000,-300.0,0.000355,2]
[423135525,1779881445000,-528.48327171,0.000355,2]
[423135513,1779881445000,-300.0,0.000355,2]
[423135516,1779881445000,-300.0,0.000355,2]
[423135508,1779881445000,-300.0,0.000355,2]
[423135517,1779881445000,-493.38669858,0.000355,2]
[423135509,1779881445000,-300.0,0.000355,2]
[423135512,1779881445000,-300.0,0.000355,2]
[423135518,1779881445000,-300.0,0.000355,2]
[423135515,1779881445000,-300.0,0.000355,2]
[423135592,1779881446000,-300.0,0.000355,2]
[423135597,1779881446000,-1068.40163352,0.000355,2]
[423135590,1779881446000,-300.0,0.000355,2]
[423135591,1779881446000,-605.31118564,0.000355,2]
[423135589,1779881446000,-300.0,0.000355,2]
[423135585,1779881446000,-300.0,0.000355,2]
[423135584,1779881446000,-300.0,0.000355,2]
[423135587,1779881446000,-493.38669858,0.000355,2]
[423135588,1779881446000,-376.20103625,0.000355,2]
[423135582,1779881446000,-300.0,0.000355,2]
[423135583,1779881446000,-449.17313882,0.000355,2]
[423135594,1779881446000,-300.0,0.000355,2]
[423135617,1779881446000,-300.0,0.000355,2]
[423135598,1779881446000,-894.65434383,0.000355,2]
[423135605,1779881446000,-300.0,0.000355,2]
[423135595,1779881446000,-300.0,0.000355,2]
[423135599,1779881446000,-727.07827244,0.000355,2]
[423135603,1779881446000,-300.0,0.000355,2]
[423135604,1779881446000,-300.99795142,0.000355,2]
[423135602,1779881446000,-300.0,0.000355,2]
[423135601,1779881446000,-302.21937029,0.000355,2]
[423135606,1779881446000,-300.0,0.000355,2]
[423135607,1779881446000,-300.0,0.000355,2]
[423135608,1779881446000,-300.0,0.000355,2]
[423135609,1779881446000,-300.0,0.000355,2]
[423135586,1779881446000,-300.0,0.000355,2]
[423135596,1779881446000,-528.48327171,0.000355,2]
[423135570,1779881446000,-484.76763572,0.000355,2]
[423135566,1779881446000,-300.0,0.000355,2]
[423135579,1779881446000,-300.0,0.000355,2]
[423135610,1779881446000,-300.0,0.000355,2]
[423135554,1779881446000,-300.0,0.000355,2]
[423135555,1779881446000,-300.0,0.000355,2]
[423135553,1779881446000,-300.0,0.000355,2]
[423135557,1779881446000,-300.0,0.000355,2]
[423135568,1779881446000,-300.0,0.000355,2]
[423135562,1779881446000,-300.50973823,0.000355,2]
[423135567,1779881446000,-300.52013629,0.000355,2]
[423135558,1779881446000,-300.0,0.000355,2]
[423135556,1779881446000,-594.79850986,0.000355,2]
[423135563,1779881446000,-452.52893397,0.000355,2]
[423135561,1779881446000,-578.28315025,0.000355,2]
[423135574,1779881446000,-300.0,0.000355,2]
[423135559,1779881446000,-464.48677942,0.000355,2]
[423135564,1779881446000,-300.0,0.000355,2]
[423135565,1779881446000,-300.0,0.000355,2]
[423135569,1779881446000,-300.0,0.000355,2]
[423135581,1779881446000,-300.0,0.000355,2]
[423135571,1779881446000,-310.28230408,0.000355,2]
[423135577,1779881446000,-300.0,0.000355,2]
[423135580,1779881446000,-300.0,0.000355,2]
[423135575,1779881446000,-1096.2926835,0.000355,2]
[423135578,1779881446000,-300.0,0.000355,2]
[423135572,1779881446000,-300.0,0.000355,2]
[423135573,1779881446000,-300.0,0.000355,2]
[423135576,1779881446000,-300.00000001,0.000355,2]
[423135560,1779881446000,-300.0,0.000355,2]
[423135613,1779881446000,-344.45437934,0.000355,2]
[423135600,1779881446000,-300.0,0.000355,2]
[423135615,1779881446000,-300.0,0.000355,2]
[423135650,1779881446000,-300.0,0.000355,2]
[423135647,1779881446000,-572.23504943,0.000355,2]
[423135644,1779881446000,-310.28230408,0.000355,2]
[423135645,1779881446000,-300.0,0.000355,2]
[423135648,1779881446000,-300.0,0.000355,2]
[423135652,1779881446000,-499.37863486,0.000355,2]
[423135651,1779881446000,-480.03920667,0.000355,2]
[423135654,1779881446000,-300.0,0.000355,2]
[423135659,1779881446000,-605.31118564,0.000355,2]
[423135660,1779881446000,-300.0,0.000355,2]
[423135662,1779881446000,-300.0,0.000355,2]
[423135663,1779881446000,-300.0,0.000355,2]
[423135653,1779881446000,-300.0,0.000355,2]
[423135658,1779881446000,-300.0,0.000355,2]
[423135661,1779881446000,-300.0,0.000355,2]
[423135664,1779881446000,-528.48327171,0.000355,2]
[423135655,1779881446000,-300.0,0.000355,2]
[423135656,1779881446000,-493.38669858,0.000355,2]
[423135657,1779881446000,-300.0,0.000355,2]
[423135665,1779881446000,-1068.40163352,0.000355,2]
[423135667,1779881446000,-313.66497829,0.000355,2]
[423135666,1779881446000,-894.65434383,0.000355,2]
[423135668,1779881446000,-727.07827244,0.000355,2]
[423135669,1779881446000,-579.95267858,0.000355,2]
[423135670,1779881446000,-302.21937029,0.000355,2]
[423135672,1779881446000,-300.99795142,0.000355,2]
[423135612,1779881446000,-300.0,0.000355,2]
[423135646,1779881446000,-300.0,0.000355,2]
[423135649,1779881446000,-1096.2926835,0.000355,2]
[423135642,1779881446000,-300.0,0.000355,2]
[423135641,1779881446000,-300.0,0.000355,2]
[423135611,1779881446000,-1263.96825586,0.000355,2]
[423135616,1779881446000,-300.0,0.000355,2]
[423135614,1779881446000,-527.62572404,0.000355,2]
[423135621,1779881446000,-300.0,0.000355,2]
[423135625,1779881446000,-300.0,0.000355,2]
[423135629,1779881446000,-300.0,0.000355,2]
[423135671,1779881446000,-300.0,0.000355,2]
[423135623,1779881446000,-310.02493426,0.000355,2]
[423135626,1779881446000,-1634.44392223,0.000355,2]
[423135620,1779881446000,-300.09384644,0.000355,2]
[423135643,1779881446000,-484.76763572,0.000355,2]
[423135624,1779881446000,-300.0,0.000355,2]
[423135622,1779881446000,-1148.83589152,0.000355,2]
[423135618,1779881446000,-865.6208675,0.000355,2]
[423135619,1779881446000,-950.32029804,0.000355,2]
[423135628,1779881446000,-300.0,0.000355,2]
[423135631,1779881446000,-300.0,0.000355,2]
[423135630,1779881446000,-594.79850986,0.000355,2]
[423135634,1779881446000,-300.0,0.000355,2]
[423135635,1779881446000,-578.28315025,0.000355,2]
[423135636,1779881446000,-300.0,0.000355,2]
[423135639,1779881446000,-300.0,0.000355,2]
[423135633,1779881446000,-464.48677942,0.000355,2]
[423135638,1779881446000,-300.0,0.000355,2]
[423135632,1779881446000,-300.0,0.000355,2]
[423135627,1779881446000,-330.75882757,0.000355,2]
[423135637,1779881446000,-452.52893397,0.000355,2]
[423135640,1779881446000,-300.0,0.000355,2]
[423135678,1779881447000,-387.03054415,0.000355,2]
[423135679,1779881447000,-344.45437934,0.000355,2]
[423135674,1779881447000,-300.0,0.000355,2]
[423135680,1779881447000,-527.62572404,0.000355,2]
[423135676,1779881447000,-300.0,0.000355,2]
[423135677,1779881447000,-1263.96825586,0.000355,2]
[423135675,1779881447000,-300.0,0.000355,2]
[423135673,1779881447000,-300.0,0.000355,2]
[423135685,1779881447000,-950.32029804,0.000355,2]
[423135681,1779881447000,-300.0,0.000355,2]
[423135684,1779881447000,-865.6208675,0.000355,2]
[423135695,1779881447000,-300.0,0.000355,2]
[423135689,1779881447000,-310.02493426,0.000355,2]
[423135699,1779881447000,-464.48677942,0.000355,2]
[423135700,1779881447000,-300.0,0.000355,2]
[423135687,1779881447000,-379.42334402,0.000355,2]
[423135683,1779881447000,-300.0,0.000355,2]
[423135682,1779881447000,-300.0,0.000355,2]
[423135686,1779881447000,-300.09384644,0.000355,2]
[423135688,1779881447000,-1148.83589152,0.000355,2]
[423135818,1779881448000,-464.48677942,0.000355,2]
[423135827,1779881448000,-300.0,0.000355,2]
[423135825,1779881448000,-310.28230408,0.000355,2]
[423135826,1779881448000,-300.0,0.000355,2]
[423135836,1779881448000,-300.0,0.000355,2]
[423135832,1779881448000,-493.38669858,0.000355,2]
[423135829,1779881448000,-1096.2926835,0.000355,2]
[423135828,1779881448000,-300.0,0.000355,2]
[423135837,1779881448000,-528.48327171,0.000355,2]
[423135830,1779881448000,-300.0,0.000355,2]
[423135833,1779881448000,-300.0,0.000355,2]
[423135834,1779881448000,-605.31118564,0.000355,2]
[423135835,1779881448000,-399.15379367,0.000355,2]
[423135831,1779881448000,-300.0,0.000355,2]
[423135817,1779881448000,-300.0,0.000355,2]
[423135846,1779881448000,-474.76649744,0.000355,2]
[423135839,1779881448000,-894.65434383,0.000355,2]
[423135843,1779881448000,-300.99795142,0.000355,2]
[423135842,1779881448000,-300.0,0.000355,2]
[423135840,1779881448000,-727.07827244,0.000355,2]
[423135841,1779881448000,-302.21937029,0.000355,2]
[423135844,1779881448000,-300.0,0.000355,2]
[423135845,1779881448000,-300.0,0.000355,2]
[423135838,1779881448000,-1068.40163352,0.000355,2]
[423135820,1779881448000,-578.28315025,0.000355,2]
[423135824,1779881448000,-484.76763572,0.000355,2]
[423135821,1779881448000,-452.52893397,0.000355,2]
[423135848,1779881448000,-344.45437934,0.000355,2]
[423135799,1779881448000,-300.99795142,0.000355,2]
[423135798,1779881448000,-300.0,0.000355,2]
[423135795,1779881448000,-727.07827244,0.000355,2]
[423135796,1779881448000,-302.21937029,0.000355,2]
[423135797,1779881448000,-300.0,0.000355,2]
[423135811,1779881448000,-950.32029804,0.000355,2]
[423135809,1779881448000,-300.0,0.000355,2]
[423135800,1779881448000,-300.0,0.000355,2]
[423135803,1779881448000,-300.0,0.000355,2]
[423135805,1779881448000,-1263.96825586,0.000355,2]
[423135819,1779881448000,-300.0,0.000355,2]
[423135804,1779881448000,-300.0,0.000355,2]
[423135810,1779881448000,-865.6208675,0.000355,2]
[423135801,1779881448000,-300.0,0.000355,2]
[423135812,1779881448000,-300.09384644,0.000355,2]
[423135806,1779881448000,-300.0,0.000355,2]
[423135807,1779881448000,-344.45437934,0.000355,2]
[423135813,1779881448000,-1148.83589152,0.000355,2]
[423135822,1779881448000,-546.07975602,0.000355,2]
[423135815,1779881448000,-479.37676573,0.000355,2]
[423135814,1779881448000,-310.02493426,0.000355,2]
[423135823,1779881448000,-300.0,0.000355,2]
[423135816,1779881448000,-594.79850986,0.000355,2]
[423135808,1779881448000,-527.62572404,0.000355,2]
[423135847,1779881448000,-1263.96825586,0.000355,2]
[423135802,1779881448000,-300.0,0.000355,2]
[423135850,1779881448000,-300.0,0.000355,2]
[423135879,1779881448000,-3826.5122544,0.00035582,2]
[423135880,1779881448000,-166.57,0.00035605,2]
[423135881,1779881448000,-4515.01183057,0.0003561,2]
[423135882,1779881448000,-150.76105611,0.00035616,60]
[423135885,1779881448000,-200.0,0.00035616,90]
[423135886,1779881448000,-200.0,0.00035616,90]
[423135883,1779881448000,-303.80851446,0.00035616,7]
[423135884,1779881448000,-200.0,0.00035616,90]
[423135890,1779881448000,-200.0,0.00035616,90]
[423135892,1779881448000,-200.0,0.00035616,90]
[423135889,1779881448000,-200.0,0.00035616,90]
[423135878,1779881448000,-817.0,0.00035532,5]
[423135888,1779881448000,-200.0,0.00035616,90]
[423135894,1779881448000,-200.0,0.00035616,90]
[423135893,1779881448000,-200.0,0.00035616,90]
[423135897,1779881448000,-200.0,0.00035616,90]
[423135901,1779881448000,-3826.5122544,0.00035642,2]
[423135895,1779881448000,-200.0,0.00035616,90]
[423135896,1779881448000,-200.0,0.00035616,90]
[423135898,1779881448000,-200.0,0.00035616,90]
[423135900,1779881448000,-3826.5122544,0.00035622,2]
[423135902,1779881448000,-3826.5122544,0.00035652,2]
[423135899,1779881448000,-1825.97,0.00035621,2]
[423135903,1779881448000,-3826.5122544,0.00035734,2]
[423135891,1779881448000,-200.0,0.00035616,90]
[423135877,1779881448000,-1020.0,0.00035532,5]
[423135851,1779881448000,-300.0,0.000355,2]
[423135874,1779881448000,-151.0,0.000355,7]
[423135887,1779881448000,-200.0,0.00035616,90]
[423135849,1779881448000,-527.62572404,0.000355,2]
[423135853,1779881448000,-950.32029804,0.000355,2]
[423135852,1779881448000,-865.6208675,0.000355,2]
[423135864,1779881448000,-484.76763572,0.000355,2]
[423135856,1779881448000,-310.02493426,0.000355,2]
[423135854,1779881448000,-300.09384644,0.000355,2]
[423135863,1779881448000,-300.0,0.000355,2]
[423135857,1779881448000,-594.79850986,0.000355,2]
[423135860,1779881448000,-300.0,0.000355,2]
[423135859,1779881448000,-464.48677942,0.000355,2]
[423135858,1779881448000,-300.0,0.000355,2]
[423135855,1779881448000,-1148.83589152,0.000355,2]
[423135862,1779881448000,-452.52893397,0.000355,2]
[423135861,1779881448000,-578.28315025,0.000355,2]
[423135870,1779881448000,-1096.2926835,0.000355,2]
[423135873,1779881448000,-493.38669858,0.000355,2]
[423135868,1779881448000,-313.10763464,0.000355,2]
[423135876,1779881448000,-1537.93870226,0.00035503,120]
[423135872,1779881448000,-300.0,0.000355,2]
[423135871,1779881448000,-301.14549986,0.000355,2]
[423135875,1779881448000,-3826.5122544,0.00035501,2]
[423135869,1779881448000,-593.12439472,0.000355,2]
[423135867,1779881448000,-300.0,0.000355,2]
[423135865,1779881448000,-310.28230408,0.000355,2]
[423135866,1779881448000,-300.75433971,0.000355,2]
[423135945,1779881449000,-525.0,0.00037092,2]
[423135939,1779881449000,-653.76632367,0.00037,120]
[423135940,1779881449000,-352.4,0.00037065,120]
[423135934,1779881449000,-3826.5122544,0.00036829,2]
[423135941,1779881449000,-2503.85,0.00037067,2]
[423135943,1779881449000,-546.87137406,0.00037071,2]
[423135938,1779881449000,-1341.79059644,0.00037,20]
[423135937,1779881449000,-3826.5122544,0.00036967,2]
[423135942,1779881449000,-9999.99,0.00037067,2]
[423135947,1779881449000,-712.804,0.00037092,2]
[423135944,1779881449000,-4204.64731356,0.0003708,2]
[423135952,1779881449000,-218.45740462,0.000373,30]
[423135962,1779881449000,-150.0,0.00037497,2]
[423135953,1779881449000,-3826.5122544,0.00037303,2]
[423135954,1779881449000,-10305.1062112,0.00037323,2]
[423135946,1779881449000,-1225.0,0.00037092,2]
[423135955,1779881449000,-3826.5122544,0.00037389,2]
[423135957,1779881449000,-166.57,0.00037462,2]
[423135956,1779881449000,-176.73,0.000374,7]
[423135948,1779881449000,-1144.96776129,0.000371,120]
[423135950,1779881449000,-3826.5122544,0.00037231,2]
[423135949,1779881449000,-3826.5122544,0.00037148,2]
[423135958,1779881449000,-199.97,0.00037463,120]
[423135963,1779881449000,-150.0,0.00037497,2]
[423135935,1779881449000,-248.54033598,0.00036899,2]
[423135960,1779881449000,-150.0,0.00037497,2]
[423135951,1779881449000,-3826.5122544,0.00037273,2]
[423135936,1779881449000,-200.0,0.00036942,10]
[423135919,1779881449000,-700.0,0.00036433,2]
[423135928,1779881449000,-159.28862893,0.00036699,60]
[423135904,1779881449000,-10305.1062112,0.00035809,2]
[423135908,1779881449000,-3826.5122544,0.00036298,2]
[423135961,1779881449000,-150.0,0.00037497,2]
[423135909,1779881449000,-10305.1062112,0.00036314,2]
[423135907,1779881449000,-3687.23319153,0.00036094,2]
[423135905,1779881449000,-165.8,0.00035923,2]
[423135910,1779881449000,-521.93190488,0.00036316,2]
[423135911,1779881449000,-384.52,0.00036362,60]
[423135913,1779881449000,-300.0,0.00036399,10]
[423135912,1779881449000,-3826.5122544,0.00036381,2]
[423135915,1779881449000,-300.0,0.00036399,10]
[423135916,1779881449000,-176.73,0.000364,7]
[423135918,1779881449000,-3826.5122544,0.00036419,2]
[423135917,1779881449000,-90490.0,0.000364,30]
[423135920,1779881449000,-1825.97,0.00036449,2]
[423135914,1779881449000,-300.0,0.00036399,10]
[423135921,1779881449000,-2135.8,0.000365,14]
[423135923,1779881449000,-300.0,0.00036601,10]
[423135933,1779881449000,-10305.1062112,0.00036819,2]
[423135927,1779881449000,-3826.5122544,0.00036672,2]
[423135924,1779881449000,-300.0,0.00036601,10]
[423135922,1779881449000,-300.0,0.00036597,10]
[423135925,1779881449000,-67653.8841,0.00036602,30]
[423135926,1779881449000,-3826.5122544,0.00036614,2]
[423135929,1779881449000,-3826.5122544,0.00036719,2]
[423135930,1779881449000,-3826.5122544,0.00036734,2]
[423135932,1779881449000,-300.0,0.00036816,10]
[423135931,1779881449000,-3826.5122544,0.00036755,2]
[423135968,1779881449000,-193.20273827,0.00037524,2]
[423135906,1779881449000,-1144.96776129,0.00036,120]
[423135964,1779881449000,-150.0,0.00037497,2]
[423135996,1779881449000,-5311.39,0.00038276,60]
[423135998,1779881449000,-10305.1062112,0.00038333,2]
[423136007,1779881449000,-500.0,0.00038356,30]
[423136002,1779881449000,-500.0,0.00038356,30]
[423136008,1779881449000,-500.0,0.00038356,30]
[423135997,1779881449000,-1068.0,0.00038315,11]
[423136000,1779881449000,-500.0,0.00038356,30]
[423136001,1779881449000,-500.0,0.00038356,30]
[423136003,1779881449000,-500.0,0.00038356,30]
[423136005,1779881449000,-500.0,0.00038356,30]
[423136006,1779881449000,-500.0,0.00038356,30]
[423136010,1779881449000,-500.0,0.00038356,30]
[423136013,1779881449000,-500.0,0.00038356,30]
[423136009,1779881449000,-500.0,0.00038356,30]
[423136012,1779881449000,-500.0,0.00038356,30]
[423136020,1779881449000,-265.514497,0.00038356,30]
[423136011,1779881449000,-500.0,0.00038356,30]
[423136016,1779881449000,-500.0,0.00038356,30]
[423136018,1779881449000,-151.0,0.00038356,30]
[423136014,1779881449000,-500.0,0.00038356,30]
[423136019,1779881449000,-247.673572,0.00038356,30]
[423136017,1779881449000,-500.0,0.00038356,30]
[423136015,1779881449000,-500.0,0.00038356,30]
[423136022,1779881449000,-265.514497,0.00038356,30]
[423136021,1779881449000,-265.514497,0.00038356,30]
[423136023,1779881449000,-265.514497,0.00038356,30]
[423135967,1779881449000,-2135.8,0.000375,14]
[423136004,1779881449000,-500.0,0.00038356,30]
[423135999,1779881449000,-300.0,0.00038355,10]
[423136024,1779881449000,-265.514497,0.00038356,30]
[423135989,1779881449000,-157.72141423,0.000381,4]
[423135959,1779881449000,-199.97,0.00037463,120]
[423135966,1779881449000,-150.0,0.00037497,2]
[423135969,1779881449000,-15000.0,0.00037559,2]
[423135970,1779881449000,-300.0,0.00037599,10]
[423135965,1779881449000,-150.0,0.00037497,2]
[423135975,1779881449000,-5274.3716725,0.00037765,2]
[423135980,1779881449000,-190.7101456,0.00038,5]
[423135972,1779881449000,-90490.0,0.000376,30]
[423135988,1779881449000,-500.0,0.0003809,120]
[423135974,1779881449000,-250.0,0.00037765,30]
[423135978,1779881449000,-500.0,0.00037818,60]
[423135973,1779881449000,-541.0,0.00037708,30]
[423135979,1779881449000,-10305.1062112,0.00037828,2]
[423135977,1779881449000,-1200.0,0.00037818,60]
[423135976,1779881449000,-500.0,0.00037818,60]
[423135982,1779881449000,-222.0,0.00038,120]
[423135986,1779881449000,-200.0,0.00038048,10]
[423135971,1779881449000,-244.89,0.000376,30]
[423135992,1779881449000,-894.5813004,0.00038138,2]
[423135983,1779881449000,-804.9741041,0.00038012,2]
[423135990,1779881449000,-151.0,0.00038125,30]
[423135993,1779881449000,-1144.96776129,0.000382,120]
[423135991,1779881449000,-4016.384485,0.00038138,2]
[423135987,1779881449000,-500.0,0.0003809,120]
[423135985,1779881449000,-1492.0955849,0.00038043,2]
[423135984,1779881449000,-152.0,0.00038036,6]
[423135994,1779881449000,-8391.264862,0.00038248,2]
[423135981,1779881449000,-152.0,0.00038,120]
[423135995,1779881449000,-230.4,0.00038276,60]
[423136063,1779881450000,-151.0,0.00038356,30]
[423136062,1779881450000,-602.995536,0.00038356,30]
[423136061,1779881450000,-151.0,0.00038356,30]
[423136060,1779881450000,-151.0,0.00038356,30]
[423136057,1779881450000,-191.183155,0.00038356,30]
[423136052,1779881450000,-191.183155,0.00038356,30]
[423136065,1779881450000,-151.0,0.00038356,30]
[423136068,1779881450000,-602.995536,0.00038356,30]
[423136058,1779881450000,-191.183155,0.00038356,30]
[423136059,1779881450000,-191.183159,0.00038356,30]
[423136066,1779881450000,-602.995536,0.00038356,30]
[423136069,1779881450000,-602.995536,0.00038356,30]
[423136081,1779881450000,-602.995536,0.00038356,30]
[423136067,1779881450000,-151.0,0.00038356,30]
[423136070,1779881450000,-455.373379,0.00038356,30]
[423136077,1779881450000,-300.824208,0.00038356,30]
[423136080,1779881450000,-455.373379,0.00038356,30]
[423136072,1779881450000,-455.373379,0.00038356,30]
[423136078,1779881450000,-455.373379,0.00038356,30]
[423136074,1779881450000,-602.995536,0.00038356,30]
[423136071,1779881450000,-602.995536,0.00038356,30]
[423136073,1779881450000,-602.995536,0.00038356,30]
[423136075,1779881450000,-455.373379,0.00038356,30]
[423136079,1779881450000,-602.995536,0.00038356,30]
[423136076,1779881450000,-602.995536,0.00038356,30]
[423136046,1779881450000,-191.183155,0.00038356,30]
[423136064,1779881450000,-602.995536,0.00038356,30]
[423136049,1779881450000,-191.183155,0.00038356,30]
[423136040,1779881450000,-191.183155,0.00038356,30]
[423136050,1779881450000,-191.183155,0.00038356,30]
[423136083,1779881450000,-602.995536,0.00038356,30]
[423136032,1779881450000,-265.514497,0.00038356,30]
[423136026,1779881450000,-265.514497,0.00038356,30]
[423136025,1779881450000,-265.514497,0.00038356,30]
[423136029,1779881450000,-265.514497,0.00038356,30]
[423136030,1779881450000,-265.514497,0.00038356,30]
[423136027,1779881450000,-265.514497,0.00038356,30]
[423136028,1779881450000,-265.514497,0.00038356,30]
[423136031,1779881450000,-265.514497,0.00038356,30]
[423136041,1779881450000,-191.183155,0.00038356,30]
[423136033,1779881450000,-265.514497,0.00038356,30]
[423136038,1779881450000,-265.514497,0.00038356,30]
[423136034,1779881450000,-265.514497,0.00038356,30]
[423136042,1779881450000,-191.183155,0.00038356,30]
[423136035,1779881450000,-265.514497,0.00038356,30]
[423136037,1779881450000,-265.514497,0.00038356,30]
[423136036,1779881450000,-265.514497,0.00038356,30]
[423136039,1779881450000,-265.514505,0.00038356,30]
[423136043,1779881450000,-191.183155,0.00038356,30]
[423136054,1779881450000,-191.183155,0.00038356,30]
[423136045,1779881450000,-191.183155,0.00038356,30]